[Event "98th Caplin Hastings Masters 2024-25"]
[Site "Hastings"]
[Date "2024.12.31"]
[Round "6.23"]
[White "Bhatia, Kanishka"]
[Black "Badacsonyi, Stanley"]
[Result "0-1"]
[ECO "C01"]
[WhiteElo "2018"]
[BlackElo "2266"]
[Annotator "TA"]
[PlyCount "140"]
[EventDate "2024.12.23"]
[EventType "swiss"]
[EventCountry "ENG"]
[SourceTitle "playchess.com"]
[Source "ChessBase"]
[SourceQuality "1"]
[TimeControl "5400+30"]

{[%evp 17,140,8,27,14,20,0,41,0,62,61,74,-25,12,-150,-150,-148,-154,-139,-71,-70,-68,-79,-66,-76,-70,-86,-54,-46,-38,-151,-145,-158,-32,-3,-1,-1,-22,-109,-85,-79,-86,-110,-105,-108,-118,-108,-104,-114,-107,-192,-192,-159,-61,-47,-61,-179,-198,-155,0,-93,0,0,0,0,0,0,0,-6,-7,-6,-6,-16,-16,-16,-18,-22,-28,-75,-75,-75,-75,-75,-75,-75,-75,-75,-75,-75,-75,-75,-75,-75,-75,-76,-68,-66,-67,-69,-68,-29980,-29981,-29981,-29982,-29982,-29981,-29985,-29977,-29981,-29982,-29982,-29983,-29982,-29984,-29984,-29984,-29987,-29984,-29984,-29985,-29985,-29985,-29986,-29980,-29991,-29992]} 1. e4 {[%emt 0:00:03]} e6 {[%emt 0:00:06]} 2. d4 {[%emt 0:00:26]} d5 {[%emt 0:00:06]} 3. exd5 {[%emt 0:00:07]} exd5 {[%emt 0:00:05]} 4. Bd3 {[%emt 0:00:09]} Bd6 {[%emt 0:00:05]} 5. Nf3 {[%emt 0:00:15]} Nc6 {[%emt 0:00:17]} 6. c3 {[%emt 0:00:32]} Bg4 {[%emt 0:00:17]} 7. h3 {[%emt 0:00:26]} Bh5 {[%emt 0:00:11] C01: French: Exchange Variation.} 8. O-O {[%emt 0:00:21]} Nge7 {[%emt 0:00:05]} 9. Re1 {[%emt 0:01:10]} Qd7 {[%emt 0:01:19]} 10. a4 {[%emt 0:01:16]} f6 {[%emt 0:01:07]} 11. b3 $146 {[%emt 0:05:10]} ({Predecessor:} 11. Nbd2 O-O 12. Qc2 Bg6 13. Nf1 Bxd3 14. Qxd3 Rfe8 15. Ne3 Na5 16. Qc2 b6 17. b4 {0-1 Locio,L (2210)-Saglione,E (2485) ARG-ch25 email 2012}) 11... O-O-O {[%emt 0:11:16]} 12. Ba3 {[%emt 0:04:19]} g5 {[%emt 0:00:56]} (12... Bf4 $11) 13. Bxd6 $14 {[%emt 0:00:40]} Qxd6 {[%emt 0:00:05]} 14. Qe2 {[%emt 0:02:03]} (14. b4 $16) 14... Rde8 {[%emt 0:00:59]} 15. Qe6+ $2 {[%emt 0:02:32]} (15. Nbd2 $11) 15... Qxe6 $17 {[%emt 0:00:07]} 16. Rxe6 {[%emt 1:19:01]} Bxf3 {[%emt 0:00:15]} 17. gxf3 {[%emt 0:00:00]} Rhf8 {[%emt 0:04:55]} ({Better is} 17... Ng6 18. Rxe8+ Rxe8) 18. Nd2 $17 {[%emt 0:00:00]} Ng6 {[%emt 0:01:49]} 19. Bxg6 {[%emt 0:00:00]} hxg6 {[%emt 0:00:22]} 20. Re3 {[%emt 0:00:00]} Rh8 {[%emt 0:00:26]} 21. Kg2 {[%emt 0:00:00]} Ref8 {[%emt 0:00:16]} 22. Rae1 {[%emt 0:00:00]} Kd7 {[%emt 0:00:33]} 23. c4 {[%emt 0:00:00]} (23. Nf1 $15) 23... Rh7 $17 {[%emt 0:04:26]} (23... Nxd4 24. cxd5 Rh7 25. Ne4 $11) 24. cxd5 {[%emt 0:00:00]} Ne7 {[%emt 0:01:07]} (24... Nb4 $17 25. Ne4 b6) 25. Ne4 $15 {[%emt 0:00:00]} b6 {[%emt 0:00:06]} 26. Nc3 {[%emt 0:00:00]} Nf5 {[%emt 0:01:02]} 27. Re4 {[%emt 0:00:00]} (27. Rd3 $1 $11) 27... Rfh8 {[%emt 0:00:20]} 28. Rh1 {[%emt 0:00:00]} Nh4+ {[%emt 0:00:16]} 29. Kg3 {[%emt 0:00:00]} Nxf3 $1 {[%emt 0:00:20]} 30. Re6 {[%emt 0:00:00]} (30. Kxf3 Rxh3+ 31. Rxh3 Rxh3+ 32. Ke2 Rxc3) 30... Nxd4 {[%emt 0:00:23]} 31. Rxf6 {[%emt 0:00:00]} Nf5+ $1 {[%emt 0:01:45]} 32. Kg2 {[%emt 0:00:00]} g4 $1 {[%emt 0:00:32]} 33. h4 {[%emt 0:00:00]} (33. Ne4 $17) 33... Nxh4+ $19 {[%emt 0:00:15]} ({But not} 33... Rxh4 34. Rxh4 Rxh4 35. Rf7+ Ne7 36. Nb5 $15) 34. Kf1 {[%emt 0:00:00] [#]} Nf3 {[%emt 0:00:42]} (34... Re7 $1 $17 {[%cal Oh4f3] White must now prevent ...Nf3!} 35. Re6 Rxe6 36. dxe6+ Kxe6) 35. Rxh7+ $15 {[%emt 0:00:00]} Rxh7 {[%emt 0:00:01]} 36. Rxg6 {[%emt 0:00:00] [#]} (36. Ke2 $15) 36... Re7 $1 $19 {[%emt 0:00:41]} 37. Re6 {[%emt 0:00:00]} Rh7 {[%emt 0:01:49]} (37... Rxe6 $142 38. dxe6+ Kxe6) 38. Rg6 $17 {[%emt 0:00:00]} a6 {[%emt 0:06:28]} ({Black should try} 38... Rh1+ $17 39. Ke2 Re1+ 40. Kd3 Ne5+ 41. Kd2 Nxg6 42. Kxe1 Nf4) 39. Ke2 $11 {[%emt 0:00:51]} Re7+ {[%emt 0:00:37]} 40. Kd1 {[%emt 0:00:44]} Ne5 {[%emt 0:05:06]} 41. Rf6 {[%emt 0:01:49]} Nd3 {[%emt 0:06:05]} 42. Kc2 {[%emt 0:01:06]} Nb4+ {[%emt 0:02:39]} 43. Kd2 {[%emt 0:00:23]} Rg7 {[%emt 0:02:51]} 44. Rf4 {[%emt 0:01:30]} a5 {[%emt 0:00:06]} 45. Rf5 {[%emt 0:02:37]} g3 {[%emt 0:03:10]} 46. fxg3 {[%emt 0:00:01]} Rxg3 {[%emt 0:00:07]} 47. Rf7+ {[%emt 0:00:54]} (47. Nb5 $1 $11 {should be considered.}) 47... Kd8 {[%emt 0:00:33]} 48. Nb5 {[%emt 0:01:14]} Nxd5 {[%emt 0:00:17]} 49. Kc2 {[%emt 0:00:53]} Re3 {[%emt 0:01:05]} 50. Rh7 {[%emt 0:01:13]} Kc8 {[%emt 0:01:12]} 51. Rg7 {[%emt 0:00:28]} Rh3 {[%emt 0:01:31]} 52. Rf7 {[%emt 0:01:03]} Rh2+ {[%emt 0:00:43]} 53. Kb1 {[%emt 0:00:45]} Kb7 {[%emt 0:01:07]} 54. Nd6+ {[%emt 0:00:24]} Kc6 {[%emt 0:00:18]} 55. Nb5 {[%emt 0:00:04]} Kc5 {[%emt 0:00:12]} 56. Nxc7 {[%emt 0:03:00]} Nc3+ {[%emt 0:00:13]} 57. Kc1 {[%emt 0:00:06]} Kb4 {[%emt 0:00:08]} 58. Rf3 $2 {[%emt 0:00:48][%mdl 8192]} (58. Rf6 $15) 58... Kxb3 {[%emt 0:00:22]} 59. Rxc3+ {[%emt 0:00:45]} Kxc3 {[%emt 0:00:05]} 60. Nd5+ {[%emt 0:00:06]} Kb3 {[%emt 0:00:05]} 61. Nxb6 {[%emt 0:00:09]} Rh1+ {[%emt 0:00:20]} 62. Kd2 {[%emt 0:00:05]} Rh6 {[%emt 0:00:14]} 63. Nc8 {[%emt 0:00:29]} Kxa4 {[%emt 0:00:11]} 64. Ne7 {[%emt 0:00:13]} Kb3 {[%emt 0:00:09]} 65. Nf5 {[%emt 0:00:17]} Rb6 {[%emt 0:00:28]} 66. Kc1 {[%emt 0:00:18]} Ka2 {[%emt 0:00:23]} 67. Ne3 {[%emt 0:00:09]} a4 {[%emt 0:00:09]} 68. Kc2 {[%emt 0:00:19]} Rc6+ {[%emt 0:00:06]} 69. Kd2 {[%emt 0:00:06]} a3 {[%emt 0:00:15]} 70. Nd1 {[%emt 0:00:15]} Kb3 {[%emt 0:00:04]} 0-1

[Event "98th Caplin Hastings Masters 2024-25"]
[Site "Hastings"]
[Date "2024.12.31"]
[Round "6.24"]
[White "Bin-Suhayl, Ieysaa"]
[Black "Zhang, Kendrick Botong"]
[Result "1-0"]
[ECO "D85"]
[WhiteElo "2183"]
[BlackElo "1979"]
[Annotator "TA"]
[PlyCount "63"]
[EventDate "2024.12.23"]
[EventType "swiss"]
[EventCountry "ENG"]
[SourceTitle "playchess.com"]
[Source "ChessBase"]
[SourceQuality "1"]
[TimeControl "5400+30"]

{[%evp 23,63,31,45,23,25,27,36,31,29,27,26,10,31,2,14,0,11,0,20,5,56,58,79,64,60,12,11,-379,0,0,0,0,0,0,95,0,12,0,742,733,29991,29992]} 1. d4 {[%emt 0:06:35]} Nf6 {[%emt 0:00:17]} 2. c4 {[%emt 0:00:04]} g6 {[%emt 0:00:07]} 3. Nc3 {[%emt 0:00:02]} d5 {[%emt 0:00:05]} 4. cxd5 {[%emt 0:00:02]} Nxd5 {[%emt 0:00:07]} 5. e4 {[%emt 0:00:02]} Nxc3 {[%emt 0:00:10]} 6. bxc3 {[%emt 0:00:02]} Bg7 {[%emt 0:00:07]} 7. Nf3 {[%emt 0:00:02]} c5 {[%emt 0:00:22]} 8. Be3 {[%emt 0:00:02]} O-O {[%emt 0:00:23]} 9. Be2 {[%emt 0:00:02]} Nc6 {[%emt 0:07:57]} 10. O-O {[%emt 0:08:09]} cxd4 {[%emt 0:04:44]} 11. cxd4 {[%emt 0:00:15]} Bg4 {[%emt 0:02:02]} 12. d5 {[%emt 0:00:01]} Ne5 {[%emt 0:09:29]} 13. Nxe5 {[%emt 0:01:29]} Bxe2 {[%emt 0:00:09]} 14. Qxe2 {[%emt 0:00:02]} Bxe5 {[%emt 0:00:11]} 15. Rab1 {[%emt 0:00:02]} Qd7 {[%emt 0:12:50]} 16. f4 {[%emt 0:00:04]} Bg7 {[%emt 0:01:42]} 17. Rbd1 {[%emt 0:04:11]} Rfc8 {[%emt 0:09:07]} 18. e5 {[%emt 0:04:34]} b5 {[%emt 0:05:05]} 19. Kh1 {[%emt 0:02:41]} Rc4 {[%emt 0:01:28]} 20. Bg1 {[%emt 0:03:01][%cal Of4f5]} Rac8 {[%emt 0:07:12]} 21. h3 {[%emt 0:08:37][%cal Of4f5]} Qf5 {[%emt 0:06:11]} (21... Rc2 $11 22. Rd2 Rxd2 23. Qxd2 Bf8) 22. d6 $14 {[%emt 0:05:51]} exd6 {[%emt 0:05:51]} 23. exd6 {[%emt 0:00:12]} (23. Bxa7 dxe5 (23... Rxf4 24. exd6 Rxf1+ 25. Rxf1 $16) 24. fxe5 Qxe5 25. Qxe5 Bxe5 $15) 23... Qd7 {[%emt 0:02:45] [#]} 24. Bxa7 {[%emt 0:04:51]} Bf8 $1 $11 {[%emt 0:06:26] [#]} (24... Qxa7 $2 25. d7 Qa8 (25... Rd8 $2 26. Qe8+ $18) 26. dxc8=N (26. dxc8=R+ Rxc8 27. Qxb5 Qxa2 $18) 26... Rxc8 27. Qxb5 $18) 25. Qe5 $2 {[%emt 0:15:35][%mdl 8192]} Bxd6 $2 {[%emt 0:11:18]} (25... Qxa7 $19 26. f5 Qd7 (26... Qxa2 $2 {loses.} 27. d7 $18) 27. fxg6 hxg6) 26. Rxd6 {[%emt 0:00:07]} Qxa7 {[%emt 0:00:10]} 27. f5 {[%emt 0:02:24]} R4c5 {[%emt 0:04:11]} 28. Qd4 $40 {[%emt 0:02:04][%mdl 128] Strongly threatening Rd7. White attacks.} gxf5 {[%emt 0:03:29]} (28... Qb8 $11 {keeps the balance.}) 29. Rd1 {[%emt 0:12:27] White is much more active.} (29. Rd8+ $16 Rxd8 30. Qxd8+ Kg7 31. Qg5+ Kh8 32. Rd1 (32. Rxf5 Rxf5 33. Qxf5 Qb7 $11)) 29... Qe7 {[%emt 0:00:32]} 30. Rd7 {[%emt 0:00:58]} Qe5 $2 {[%emt 0:00:24][%mdl 8192] [#]} (30... Qg5 $11) 31. Rd8+ $1 $18 {[%emt 0:00:17]} Rxd8 {[%emt 0:00:14]} 32. Qxd8+ {[%emt 0:00:06]} 1-0

[Event "98th Caplin Hastings Masters 2024-25"]
[Site "Hastings"]
[Date "2024.12.31"]
[Round "6.25"]
[White "Marusenko, Petr"]
[Black "Brewer, Callum D"]
[Result "1-0"]
[ECO "E25"]
[WhiteElo "2021"]
[BlackElo "2151"]
[Annotator "ChessBase"]
[PlyCount "113"]
[EventDate "2024.12.23"]
[EventType "swiss"]
[EventCountry "ENG"]
[SourceTitle "playchess.com"]
[Source "ChessBase"]
[SourceQuality "1"]
[TimeControl "5400+30"]

1. d4 {[%emt 0:00:02]} Nf6 {[%emt 0:00:02]} 2. c4 {[%emt 0:00:05]} e6 {[%emt 0:00:07]} 3. Nc3 {[%emt 0:00:04]} Bb4 {[%emt 0:00:06]} 4. f3 {[%emt 0:00:03]} d5 {[%emt 0:00:47]} 5. a3 {[%emt 0:00:10]} Bxc3+ {[%emt 0:00:19]} 6. bxc3 {[%emt 0:00:03]} c5 {[%emt 0:00:12]} 7. cxd5 {[%emt 0:00:05]} Nxd5 {[%emt 0:01:43]} 8. dxc5 {[%emt 0:00:10]} Qa5 {[%emt 0:02:53]} 9. e4 {[%emt 0:00:48]} Nf6 {[%emt 0:00:31]} 10. Be3 {[%emt 0:02:52]} Qxc3+ {[%emt 0:07:15]} 11. Kf2 {[%emt 0:00:15]} O-O {[%emt 0:23:41]} 12. Ne2 {[%emt 0:13:27]} Qa5 {[%emt 0:00:28]} 13. Nd4 {[%emt 0:00:25]} Nbd7 {[%emt 0:20:29]} 14. Nb3 {[%emt 0:06:38]} Qa4 {[%emt 0:00:27]} 15. Qc2 {[%emt 0:02:54]} Ne5 {[%emt 0:09:42]} 16. Be2 {[%emt 0:03:18]} b6 {[%emt 0:10:45]} 17. Rhc1 {[%emt 0:09:11]} Ba6 {[%emt 0:01:52]} 18. Bxa6 {[%emt 0:09:29]} Qxa6 {[%emt 0:00:03]} 19. Rd1 {[%emt 0:00:09]} bxc5 {[%emt 0:06:30]} 20. Nxc5 {[%emt 0:02:46]} Qc4 {[%emt 0:01:17]} 21. Qxc4 {[%emt 0:02:07]} Nxc4 {[%emt 0:00:02]} 22. Nd7 {[%emt 0:46:29]} Rfc8 {[%emt 0:04:37]} 23. Nxf6+ {[%emt 0:00:00]} gxf6 {[%emt 0:00:01]} 24. Bd4 {[%emt 0:00:00]} e5 {[%emt 0:01:20]} 25. Bc3 {[%emt 0:00:00]} Rab8 {[%emt 0:04:14]} 26. Bb4 {[%emt 0:00:00]} a5 {[%emt 0:01:03]} 27. Be7 {[%emt 0:00:00]} Kg7 {[%emt 0:00:16]} 28. Rac1 {[%emt 0:00:00]} Rb7 {[%emt 0:01:47]} 29. Bd8 {[%emt 0:00:00]} Rbb8 {[%emt 0:00:49]} 30. Rd5 {[%emt 0:00:00]} Nxa3 {[%emt 0:01:22]} 31. Rxc8 {[%emt 0:00:00]} Rxc8 {[%emt 0:00:01]} 32. Rd6 {[%emt 0:00:00]} Nc4 {[%emt 0:01:12]} 33. Bxf6+ {[%emt 0:00:00]} Kf8 {[%emt 0:00:29]} 34. Ra6 {[%emt 0:00:00]} Ke8 {[%emt 0:00:28]} 35. Ra7 {[%emt 0:00:00]} Rc6 {[%emt 0:00:33]} 36. Bg5 {[%emt 0:00:00]} h6 {[%emt 0:00:32]} 37. Bc1 {[%emt 0:00:00]} Kf8 {[%emt 0:00:20]} 38. Kg3 {[%emt 0:00:00]} Kg7 {[%emt 0:00:25]} 39. Kh4 {[%emt 0:00:00]} Kg6 {[%emt 0:00:43]} 40. g3 {[%emt 0:00:00]} Kg7 {[%emt 0:00:35]} 41. Kh5 {[%emt 0:00:00]} Nb6 {[%emt 0:00:30]} 42. Bb2 {[%emt 0:00:00]} Nc4 {[%emt 0:00:30]} 43. Bc3 {[%emt 0:00:00]} Rc5 {[%emt 0:00:17]} 44. f4 {[%emt 0:00:00]} a4 {[%emt 0:00:34]} 45. Rxa4 {[%emt 0:00:00]} Nd6 {[%emt 0:00:22]} 46. Bb2 {[%emt 0:00:00]} f6 {[%emt 0:00:17]} 47. Ba3 {[%emt 0:00:00]} Rc4 {[%emt 0:00:31]} 48. Ra8 {[%emt 0:00:00]} Nf7 {[%emt 0:00:59]} 49. Bf8+ {[%emt 0:00:00]} Kh7 {[%emt 0:00:17]} 50. Ra7 {[%emt 0:00:00]} Kg8 {[%emt 0:00:25]} 51. Bxh6 {[%emt 0:00:00]} exf4 {[%emt 0:00:41]} 52. Bxf4 {[%emt 0:00:00]} Rxe4 {[%emt 0:00:27]} 53. Kg6 {[%emt 0:00:00]} Nh8+ {[%emt 0:00:32]} 54. Kxf6 {[%emt 0:00:43]} Rd4 {[%emt 0:00:02]} 55. h4 {[%emt 0:01:45]} Rd8 {[%emt 0:00:21]} 56. Rg7+ {[%emt 0:01:17]} Kf8 {[%emt 0:00:02]} 57. h5 {[%emt 0:00:30]} 1-0

[Event "98th Caplin Hastings Masters 2024-25"]
[Site "Hastings"]
[Date "2024.12.31"]
[Round "6.26"]
[White "Zhu, Yaoyao"]
[Black "Kolani, Arjun"]
[Result "0-1"]
[ECO "C50"]
[WhiteElo "1990"]
[BlackElo "2131"]
[Annotator "NA"]
[PlyCount "88"]
[EventDate "2024.12.23"]
[EventType "swiss"]
[EventCountry "ENG"]
[SourceTitle "playchess.com"]
[Source "ChessBase"]
[SourceQuality "1"]
[TimeControl "5400+30"]

1. e4 {[%emt 0:00:10]} e5 {[%emt 0:00:14]} 2. Nf3 {[%emt 0:00:04]} Nc6 {[%emt 0:00:06]} 3. Bc4 {[%emt 0:00:09]} Bc5 {[%emt 0:00:14]} 4. d3 {[%emt 0:00:19]} Nf6 {[%emt 0:00:12]} 5. Nc3 {[%emt 0:00:07]} a6 {[%emt 0:00:37]} 6. a3 {[%emt 0:00:39]} h6 {[%emt 0:01:18]} 7. b4 {[%emt 0:03:13]} Ba7 {[%emt 0:00:41]} 8. h3 {[%emt 0:01:47]} d6 {[%emt 0:01:19]} 9. O-O {[%emt 0:00:11]} O-O {[%emt 0:05:01]} 10. Be3 {[%emt 0:04:14]} Ne7 {[%emt 0:14:21] C50: Hungarian Defence and Giuoco Pianissimo.} 11. Bxa7 {[%emt 0:12:50]} Rxa7 {[%emt 0:00:06]} 12. d4 {[%emt 0:01:07]} exd4 {[%emt 0:03:47]} 13. Qxd4 {[%emt 0:00:41]} Nc6 {[%emt 0:03:03]} 14. Qd2 {[%emt 0:04:46]} Ra8 {[%emt 0:18:22]} 15. Rad1 {[%emt 0:01:35]} Nd7 {[%emt 0:06:52]} 16. Nd4 {[%emt 0:04:03]} Nxd4 {[%emt 0:01:59]} 17. Qxd4 {[%emt 0:01:59]} Ne5 {[%emt 0:00:57]} 18. Be2 {[%emt 0:00:32]} Nc6 {[%emt 0:05:01]} 19. Qe3 {[%emt 0:01:12]} f5 {[%emt 0:01:16]} 20. exf5 {[%emt 0:06:38]} Bxf5 {[%emt 0:00:49]} 21. Bd3 {[%emt 0:00:41]} Qd7 {[%emt 0:02:00]} 22. Bxf5 {[%emt 0:01:20]} Rxf5 $11 {[%emt 0:02:16]} 23. Rfe1 {[%emt 0:06:53]} Raf8 {[%emt 0:01:06]} 24. f3 {[%emt 0:00:41]} Ne5 {[%emt 0:01:39]} 25. Rf1 {[%emt 0:10:51]} Nc4 {[%emt 0:07:03]} 26. Qe4 {[%emt 0:02:16]} b5 {[%emt 0:00:55]} 27. Rfe1 {[%emt 0:08:35]} Re5 {[%emt 0:06:35]} 28. Qd4 {[%emt 0:04:38]} Rfe8 {[%emt 0:00:38]} 29. Rxe5 {[%emt 0:00:22]} Rxe5 {[%emt 0:01:46]} 30. a4 {[%emt 0:09:14]} c6 {[%emt 0:08:09]} 31. axb5 {[%emt 0:01:20]} axb5 {[%emt 0:00:27]} 32. Ne4 {[%emt 0:04:18]} d5 {[%emt 0:01:46]} 33. Nd2 {[%emt 0:01:27]} Qf5 {[%emt 0:01:39]} 34. Nxc4 {[%emt 0:00:22]} bxc4 {[%emt 0:01:55]} 35. Qd2 {[%emt 0:01:46]} Kh7 {[%emt 0:02:50]} 36. c3 {[%emt 0:01:13]} Re8 {[%emt 0:00:59]} 37. Re1 {[%emt 0:00:31]} Rxe1+ {[%emt 0:00:30]} 38. Qxe1 {[%emt 0:00:02]} Qd3 {[%emt 0:00:24]} 39. Qc1 {[%emt 0:04:17]} d4 {[%emt 0:00:36]} 40. cxd4 {[%emt 0:00:39]} Qxd4+ {[%emt 0:00:26]} 41. Kf1 {[%emt 0:00:18]} Qd3+ {[%emt 0:00:34]} 42. Ke1 {[%emt 0:00:24]} c3 {[%emt 0:00:21]} 43. Qa3 {[%emt 0:03:03]} Qd2+ {[%emt 0:00:24]} 44. Kf1 {[%emt 0:00:05]} c2 {[%emt 0:00:20]} 0-1

[Event "98th Caplin Hastings Masters 2024-25"]
[Site "Hastings"]
[Date "2024.12.31"]
[Round "6.27"]
[White "Sciupokas, Arunas"]
[Black "Saunders, Aron"]
[Result "1/2-1/2"]
[ECO "B12"]
[WhiteElo "1969"]
[BlackElo "2106"]
[Annotator "NA RC"]
[PlyCount "76"]
[EventDate "2024.12.23"]
[EventType "swiss"]
[EventCountry "ENG"]
[SourceTitle "playchess.com"]
[Source "ChessBase"]
[SourceQuality "1"]
[TimeControl "5400+30"]

1. e4 {[%emt 0:00:07]} c6 {[%emt 0:00:06]} 2. d4 {[%emt 0:00:12]} d5 {[%emt 0:00:05]} 3. e5 {[%emt 0:00:14]} Bf5 {[%emt 0:00:06]} 4. Bd3 {[%emt 0:00:14]} Bxd3 {[%emt 0:00:05]} 5. Qxd3 {[%emt 0:00:08]} Qa5+ {[%emt 0:01:21]} 6. Nd2 {[%emt 0:00:56]} e6 {[%emt 0:00:28]} 7. Ngf3 {[%emt 0:00:31]} Qa6 {[%emt 0:00:20] B12: Caro-Kann: Advance Variation.} 8. Ke2 {[%emt 0:02:11]} c5 {[%emt 0:03:22]} 9. dxc5 {[%emt 0:00:48]} Qxd3+ {[%emt 0:02:10]} 10. cxd3 {[%emt 0:00:18]} Bxc5 {[%emt 0:00:04]} 11. Nb3 {[%emt 0:00:46]} Bb6 {[%emt 0:01:46]} 12. Be3 {[%emt 0:03:01]} Bxe3 {[%emt 0:01:56]} 13. fxe3 {[%emt 0:03:24]} Ne7 {[%emt 0:01:47]} 14. Nbd4 {[%emt 0:10:52]} a6 {[%emt 0:03:50]} 15. b4 {[%emt 0:03:42]} O-O {[%emt 0:11:26]} 16. b5 {[%emt 0:16:29]} Rc8 {[%emt 0:04:45]} 17. Rhb1 {[%emt 0:04:47]} a5 {[%emt 0:04:33]} 18. Rc1 {[%emt 0:06:50]} Nd7 {[%emt 0:00:42]} 19. Nb3 {[%emt 0:02:05]} a4 {[%emt 0:03:21]} 20. Nbd2 {[%emt 0:02:13]} f6 {[%emt 0:02:40]} 21. exf6 {[%emt 0:03:34]} gxf6 {[%emt 0:00:11]} 22. e4 {[%emt 0:01:36]} Kf7 {[%emt 0:02:00]} 23. Rf1 {[%emt 0:02:19]} Rg8 {[%emt 0:03:00]} 24. g3 {[%emt 0:00:46]} e5 {[%emt 0:02:21]} 25. Rac1 {[%emt 0:06:08]} Rac8 {[%emt 0:02:14]} 26. exd5 $11 {[%emt 0:01:48]} Nxd5 {[%emt 0:00:56]} 27. Nc4 {[%emt 0:01:55]} Ke6 {[%emt 0:00:36]} 28. Kd2 {[%emt 0:06:10]} Rgd8 {[%emt 0:04:51]} 29. Rce1 {[%emt 0:02:37]} Ke7 {[%emt 0:04:05]} 30. Re4 {[%emt 0:05:14]} Nc5 {[%emt 0:06:07]} 31. Rh4 {[%emt 0:01:31]} Rh8 {[%emt 0:03:34]} 32. Re1 {[%emt 0:04:20]} Rcd8 {[%emt 0:05:01]} 33. Nfxe5 {[%emt 0:05:00]} fxe5 {[%emt 0:00:38]} 34. Rxe5+ {[%emt 0:00:18]} Kf7 {[%emt 0:02:38]} 35. Rf5+ {[%emt 0:02:23]} Ke6 {[%emt 0:03:08]} 36. Re5+ {[%emt 0:00:23]} Kf7 {[%emt 0:00:02]} 37. Rf5+ {[%emt 0:00:35]} Ke6 {[%emt 0:00:47]} 38. Re5+ {[%emt 0:00:23]} Kf7 {[%emt 0:00:08]} 1/2-1/2

[Event "98th Caplin Hastings Masters 2024-25"]
[Site "Hastings"]
[Date "2024.12.31"]
[Round "6.28"]
[White "Verbin, Valentina"]
[Black "Mikalajunas, Kajus"]
[Result "0-1"]
[ECO "B11"]
[WhiteElo "2093"]
[BlackElo "1941"]
[Annotator "NA"]
[PlyCount "122"]
[EventDate "2024.12.23"]
[EventType "swiss"]
[EventCountry "ENG"]
[SourceTitle "playchess.com"]
[Source "ChessBase"]
[SourceQuality "1"]
[TimeControl "5400+30"]

1. e4 {[%emt 0:04:54]} c6 {[%emt 0:00:02]} 2. Nf3 {[%emt 0:01:31]} d5 {[%emt 0:00:02]} 3. Nc3 {[%emt 0:00:06]} Nf6 {[%emt 0:00:08]} 4. e5 {[%emt 0:00:55]} Ne4 {[%emt 0:00:03]} 5. Ne2 {[%emt 0:01:00]} h6 {[%emt 0:01:24]} 6. d3 {[%emt 0:03:57]} Ng5 {[%emt 0:00:02]} 7. Nxg5 {[%emt 0:04:34]} hxg5 {[%emt 0:00:04]} 8. Bxg5 {[%emt 0:00:38]} Qb6 {[%emt 0:01:09]} 9. Qc1 {[%emt 0:03:08]} c5 {[%emt 0:00:47]} 10. Bf4 {[%emt 0:10:37]} Nc6 {[%emt 0:02:34]} 11. Ng3 {[%emt 0:04:51]} g5 {[%emt 0:10:57]} 12. Bxg5 {[%emt 0:01:00]} Nxe5 {[%emt 0:06:18]} 13. Be2 {[%emt 0:03:45]} Qg6 {[%emt 0:06:48]} 14. Qd2 {[%emt 0:06:19]} Nc6 {[%emt 0:04:39]} 15. Qc1 {[%emt 0:08:53]} Nd4 {[%emt 0:05:45]} 16. Bd1 {[%emt 0:01:54]} Bg7 {[%emt 0:03:15]} 17. h4 {[%emt 0:04:22]} Ne6 {[%emt 0:10:37]} 18. Rb1 {[%emt 0:09:49]} Be5 $15 {[%emt 0:02:23]} 19. f4 {[%emt 0:03:05]} Bc7 {[%emt 0:05:28]} 20. O-O {[%emt 0:08:33]} Nxg5 {[%emt 0:14:55]} 21. hxg5 {[%emt 0:00:05]} Bb6 {[%emt 0:02:25]} 22. Qe3 {[%emt 0:02:20]} Qg7 {[%emt 0:06:01]} 23. c4 {[%emt 0:01:45]} dxc4 {[%emt 0:04:37]} 24. Ba4+ {[%emt 0:01:28]} Kf8 {[%emt 0:00:18]} 25. dxc4 {[%emt 0:00:42]} Qd4 {[%emt 0:00:24]} 26. Qxd4 {[%emt 0:11:13]} cxd4 {[%emt 0:00:02]} 27. Rbc1 {[%emt 0:00:02]} Bg4 {[%emt 0:05:56]} 28. c5 {[%emt 0:00:23]} Ba5 {[%emt 0:00:15]} 29. Bd1 {[%emt 0:02:22]} Bd2 {[%emt 0:00:29]} 30. Bxg4 {[%emt 0:00:45]} Be3+ {[%emt 0:00:09]} 31. Rf2 {[%emt 0:00:03]} Bxc1 {[%emt 0:00:07]} 32. Kf1 {[%emt 0:00:48]} Rh4 {[%emt 0:00:37]} 33. Bf3 {[%emt 0:00:37]} Bxf4 {[%emt 0:00:47]} 34. Nf5 {[%emt 0:00:27]} Rh1+ {[%emt 0:00:46]} 35. Ke2 {[%emt 0:00:00]} Rd8 {[%emt 0:01:34]} 36. Kd3 {[%emt 0:00:51]} Bxg5 {[%emt 0:02:11]} 37. Bxb7 {[%emt 0:00:23]} Rd1+ {[%emt 0:00:34]} 38. Ke2 {[%emt 0:00:48]} Rc1 {[%emt 0:00:32]} 39. Kd3 {[%emt 0:00:34]} Rxc5 {[%emt 0:00:16]} 40. Ng3 {[%emt 0:00:26]} Bh4 {[%emt 0:00:31]} 41. Ne4 {[%emt 0:00:11]} Bxf2 {[%emt 0:02:03]} 42. Nxc5 {[%emt 0:00:03]} e6 {[%emt 0:00:29]} 43. b4 {[%emt 0:01:04]} Ke7 {[%emt 0:00:12]} 44. g4 {[%emt 0:00:42]} Rh8 {[%emt 0:00:23]} 45. Bf3 {[%emt 0:00:32]} Rh3 {[%emt 0:00:19]} 46. Ke2 {[%emt 0:00:16]} Rh2 {[%emt 0:00:36]} 47. Kd3 {[%emt 0:00:38]} Be3 {[%emt 0:00:43]} 48. a4 {[%emt 0:00:18]} Rd2+ {[%emt 0:00:23]} 49. Ke4 {[%emt 0:00:48]} Rb2 {[%emt 0:00:48]} 50. b5 {[%emt 0:00:25]} Rb4 {[%emt 0:00:22]} 51. Kd3 {[%emt 0:00:25]} f5 {[%emt 0:00:36]} 52. gxf5 {[%emt 0:00:17]} exf5 {[%emt 0:00:03]} 53. Bc6 {[%emt 0:00:38]} Kd6 {[%emt 0:00:27]} 54. Nb7+ {[%emt 0:00:12]} Ke5 {[%emt 0:01:22]} 55. Nc5 {[%emt 0:00:47]} Rb1 {[%emt 0:00:06]} 56. a5 {[%emt 0:00:16]} Rc1 {[%emt 0:00:59]} 57. b6 {[%emt 0:00:34]} axb6 {[%emt 0:00:25]} 58. a6 {[%emt 0:00:55]} bxc5 {[%emt 0:00:38]} 59. a7 {[%emt 0:00:06]} c4+ {[%emt 0:00:19]} 60. Ke2 {[%emt 0:00:06]} Rc2+ {[%emt 0:00:57]} 61. Kd1 {[%emt 0:00:22]} d3 {[%emt 0:00:18]} 0-1

[Event "98th Caplin Hastings Masters 2024-25"]
[Site "Hastings"]
[Date "2024.12.31"]
[Round "6.29"]
[White "Ashton, Alannah"]
[Black "Cheng, Louis"]
[Result "1/2-1/2"]
[ECO "B38"]
[WhiteElo "1953"]
[BlackElo "2087"]
[Annotator "NA"]
[PlyCount "33"]
[EventDate "2024.12.23"]
[EventType "swiss"]
[EventCountry "ENG"]
[SourceTitle "playchess.com"]
[Source "ChessBase"]
[SourceQuality "1"]
[TimeControl "5400+30"]

1. e4 {[%emt 0:00:02]} c5 {[%emt 0:00:05]} 2. Nf3 {[%emt 0:00:03]} g6 {[%emt 0:00:06]} 3. d4 {[%emt 0:00:06]} cxd4 {[%emt 0:00:06]} 4. Nxd4 {[%emt 0:00:02]} Nc6 {[%emt 0:00:09]} 5. c4 {[%emt 0:00:08]} Bg7 {[%emt 0:00:05]} 6. Be3 {[%emt 0:00:07]} Nf6 {[%emt 0:00:05]} 7. Nc3 {[%emt 0:00:04]} O-O {[%emt 0:00:07]} 8. Be2 {[%emt 0:00:11]} b6 {[%emt 0:00:05]} 9. O-O {[%emt 0:01:46]} Bb7 {[%emt 0:00:05]} 10. f3 {[%emt 0:01:35]} Nxd4 {[%emt 0:00:05]} 11. Bxd4 {[%emt 0:00:11]} Qc7 {[%emt 0:00:05]} 12. Rc1 {[%emt 0:03:49]} Bh6 {[%emt 0:00:30]} 13. Rc2 {[%emt 0:09:47]} Bf4 {[%emt 0:00:08]} 14. g3 {[%emt 0:04:50]} Bxg3 {[%emt 0:00:34]} 15. hxg3 {[%emt 0:00:07]} Qxg3+ {[%emt 0:00:04]} 16. Kh1 {[%emt 0:00:06]} Qh3+ {[%emt 0:00:03]} 17. Kg1 {[%emt 0:00:55]} 1/2-1/2